[Event "5th Vera Menchik Memorial 2022"]
[Site "Prag"]
[Date "2022.06.05"]
[Round "7.12"]
[White "Ocelak, Jakub"]
[Black "Dubansky, Bohuslav"]
[Result "1/2-1/2"]
[ECO "C13"]
[WhiteElo "2060"]
[BlackElo "2223"]
[Annotator "TA"]
[PlyCount "117"]
[EventDate "2022.06.05"]
[EventType "tourn"]
[EventCountry "CZE"]
[SourceTitle "playchess.com"]
[Source "ChessBase"]
[SourceQuality "1"]
[TimeControl "720+3"]

{[%evp 13,117,20,31,0,0,-7,28,12,105,104,110,104,125,118,97,103,95,55,38,-59,-72,-106,-104,-131,-22,-27,-35,-42,0,0,0,0,-3,-14,-15,-27,0,-58,-43,-72,-50,-64,-67,-71,-77,-90,-4,-62,-18,-82,-19,-35,-40,-62,-55,-61,-26,-44,-21,-15,-10,-20,0,-23,-18,-53,-10,-15,0,-59,-22,-19,-26,-11,0,0,0,0,31,33,33,26,29,28,28,31,33,50,181,178,354,266,316,285,318,314,412,418,415,401,379,161,161,161,143,8]} 1. d4 {[%emt 0:00:05]} e6 {[%emt 0:00:01]} 2. e4 {[%emt 0:00:04]} d5 {[%emt 0:00:01]} 3. Nd2 {[%emt 0:00:01]} dxe4 {[%emt 0:00:01]} 4. Nxe4 {[%emt 0:00:01]} Nd7 {[%emt 0:00:01]} 5. Nf3 {[%emt 0:00:04]} Ngf6 {[%emt 0:00:01]} 6. Bg5 {[%emt 0:00:25]} Be7 {[%emt 0:00:03]} 7. Nxf6+ {[%emt 0:00:02]} Bxf6 $1 {[%emt 0:00:02] The main line 7...Bxf6 scores better than 7...Nxf6.} 8. Be3 {[%emt 0:00:13] C13: French: Classical System: 4 Bg5 Be7, Alekhine-Chatard Attack.} O-O {[%emt 0:00:22][%cal Oc7c5]} 9. Bd3 {[%emt 0:00:03]} b6 {[%emt 0:00:04] [#]} 10. h4 $146 {[%emt 0:00:08][%cal Od3h7] White has an edge.} ({Predecessor:} 10. Be4 Rb8 11. Qd3 g6 12. O-O-O Bb7 13. g4 Bg7 14. Bxb7 Rxb7 15. Qe4 Rb8 16. g5 {1-0 (27) Golubov,S (2339)-Sykora,J (2117) Pardubice 2014}) 10... Re8 {[%emt 0:00:42]} (10... Bb7 $11 {remains equal.}) 11. Ng5 $16 {[%emt 0:00:14]} Nf8 {[%emt 0:00:48]} 12. Qh5 {[%emt 0:00:25][%csl LRf7,LRh7]} g6 {[%emt 0:00:22]} 13. Qf3 {[%emt 0:00:02] 0x0.00222ccc11a7dp-1022s more active pieces.} Rb8 {[%emt 0:00:20]} 14. Ne4 {[%emt 0:01:08]} Bg7 {[%emt 0:00:17]} 15. Bg5 {[%emt 0:00:08]} Qxd4 {[%emt 0:02:15] Threatens to win with ...Qb4+.} 16. Nf6+ {[%emt 0:00:29]} (16. Bf6 $14 Qb4+ 17. Bc3) 16... Bxf6 $15 {[%emt 0:00:30]} 17. Bxf6 {[%emt 0:00:01]} e5 $36 {[%emt 0:02:03][%mdl 2048] White must now prevent ...Re6. Black is on the roll.} 18. Qg3 {[%emt 0:02:12]} Qf4 {[%emt 0:00:24]} (18... Re6 $17 19. Bg5 (19. c3 $2 Qf4 $19) 19... e4) 19. Qxf4 $11 {[%emt 0:00:09]} exf4+ {[%emt 0:00:01]} 20. Kd2 {[%emt 0:00:02]} Bb7 {[%emt 0:00:22]} 21. f3 $1 {[%emt 0:00:49]} h6 {[%emt 0:00:46]} 22. Rae1 {[%emt 0:00:28]} Nd7 {[%emt 0:00:01]} 23. Bd4 {[%emt 0:00:24] This bishop pair is nice.} Rbd8 {[%emt 0:00:20]} 24. Kc1 {[%emt 0:00:07]} Nc5 {[%emt 0:00:19]} 25. Bxc5 {[%emt 0:00:06]} (25. Bf6 $11) 25... bxc5 $15 {[%emt 0:00:01]} 26. b3 {[%emt 0:00:05]} Kf8 {[%emt 0:00:20]} 27. Bb5 {[%emt 0:00:17]} Re7 {[%emt 0:00:53]} 28. Rd1 {[%emt 0:00:19]} Rd6 {[%emt 0:00:08]} 29. Rde1 {[%emt 0:00:40]} Rd5 {[%emt 0:00:38]} (29... Bd5 $17) 30. Bc4 {[%emt 0:00:14]} (30. Rxe7 $1 $11 Kxe7 31. Re1+ Kf6 32. Re4) 30... Rh5 {[%emt 0:00:03]} 31. Rd1 {[%emt 0:00:15]} (31. Rxe7 $11 Kxe7 32. Re1+ Kf8 33. Rd1) 31... Kg7 {[%emt 0:00:10]} (31... Bc6 $17) 32. Kb2 {[%emt 0:00:07]} Bc6 {[%emt 0:00:07]} 33. Kc3 {[%emt 0:00:13]} Re3+ {[%emt 0:00:05]} 34. Kb2 {[%emt 0:00:14]} a5 {[%emt 0:00:03]} 35. a4 {[%emt 0:00:12]} Kf6 {[%emt 0:00:08]} 36. Rd8 {[%emt 0:00:14]} Re8 {[%emt 0:00:16]} 37. Rd2 {[%emt 0:00:07]} Kg7 {[%emt 0:00:02]} 38. Rdd1 {[%emt 0:00:05]} Re3 {[%emt 0:00:02]} 39. Kc1 {[%emt 0:00:14]} Rhe5 {[%emt 0:00:29]} 40. Kb2 {[%emt 0:00:07]} Rh5 {[%emt 0:00:14]} 41. Kc1 {[%emt 0:00:02]} Ree5 {[%emt 0:00:01]} 42. Kb2 {[%emt 0:00:31]} g5 {[%emt 0:00:02]} 43. hxg5 {[%emt 0:00:04]} Rexg5 {[%emt 0:00:01] aiming for ...Rxh1.} 44. Rxh5 {[%emt 0:00:13]} Rxh5 $11 {[%emt 0:00:01][%mdl 4096] Endgame KRB-KRB} 45. Rd8 {[%emt 0:00:19]} Rg5 {[%emt 0:00:09]} (45... Re5 $5 {[%cal Rh6h5]}) 46. Rc8 {[%emt 0:00:02]} Rxg2 {[%emt 0:00:06]} 47. Rxc7 {[%emt 0:00:01]} Bxf3 {[%emt 0:00:01] And now ...Kg6 would win.} 48. Rxf7+ {[%emt 0:00:02]} Kg6 {[%emt 0:00:04] Strongly threatening ...Kg5.} 49. Rxf4 {[%emt 0:00:04]} Bd1 {[%emt 0:00:05]} 50. Bd3+ {[%emt 0:00:04]} Kg5 {[%emt 0:00:03] A mistake that costs the game.} (50... Kg7 $14) 51. Rf5+ $18 {[%emt 0:00:05]} Kg4 $2 {[%emt 0:00:03]} (51... Kh4 52. Kc3 (52. Rxc5 Rg5 $16) 52... h5) 52. Rxc5 {[%emt 0:00:01]} h5 {[%emt 0:00:01]} 53. Rxa5 {[%emt 0:00:17]} h4 {[%emt 0:00:01] [#]} 54. Rc5 $1 {[%emt 0:00:16]} Kg3 {[%emt 0:00:06]} 55. Rg5+ {[%emt 0:00:27]} Bg4 {[%emt 0:00:01]} 56. Rg8 {[%emt 0:00:44]} h3 {[%emt 0:00:03] ...h2 is the strong threat.} 57. Bf1 {[%emt 0:00:01]} (57. a5 $142) 57... Rf2 {[%emt 0:00:21] [#]} 58. Bxh3 {[%emt 0:00:31][%mdl 512]} Kxh3 {[%emt 0:00:03]} 59. a5 {[%emt 0:00:03] Weighted Error Value: White=0.20 (precise) /Black=0.29 (precise)} ({White should play} 59. Rg7 $16) 1/2-1/2

[Event "5th Vera Menchik Memorial 2022"]
[Site "Prag"]
[Date "2022.06.05"]
[Round "7.13"]
[White "Vokoun, Jan"]
[Black "Pribyl, Josef"]
[Result "1/2-1/2"]
[ECO "A25"]
[WhiteElo "2056"]
[BlackElo "2217"]
[Annotator "TA"]
[PlyCount "126"]
[EventDate "2022.06.05"]
[EventType "tourn"]
[EventCountry "CZE"]
[SourceTitle "playchess.com"]
[Source "ChessBase"]
[SourceQuality "1"]
[TimeControl "720+3"]

{[%evp 9,126,27,24,-12,-12,-8,0,-6,0,-19,-11,-22,-22,-15,0,-23,0,-29,0,0,3,2,8,0,0,-14,0,0,0,-2,18,5,22,8,69,63,57,33,47,0,0,0,0,0,0,0,0,0,0,0,22,0,16,-8,-8,-87,-39,-262,10,0,0,-37,0,-181,-20,-194,-31,-52,-43,-43,-56,-56,-22,-47,0,-1,0,-4,0,0,8,0,0,0,0,0,0,0,0,0,0,-6,-6,-6,-6,-6,0,0,0,0,60,60,60,60,60,60,60,0,0,0,0,0,0,0,0,0,0,0,19]} 1. c4 {[%emt 0:00:02]} e5 {[%emt 0:00:01]} 2. Nc3 {[%emt 0:00:03]} Nc6 {[%emt 0:00:01]} 3. g3 {[%emt 0:00:04]} Bb4 {[%emt 0:00:01]} 4. Nd5 {[%emt 0:00:04]} Bc5 {[%emt 0:00:01]} 5. Bg2 {[%emt 0:00:03]} d6 {[%emt 0:00:02] [#]} 6. Rb1 $146 {[%emt 0:00:13] A25: English Opening vs King's Indian with ...Nc6 but without early d3.} ({Predecessor:} 6. e3 Nf6 7. a3 Nxd5 8. cxd5 Ne7 9. b4 Bb6 10. Bb2 O-O 11. Ne2 Bd7 12. f4 {1-0 (54) Ljubojevic,L (2571)-Marino Bravo,M (2165) Linares 2019}) 6... a5 {[%emt 0:00:01] Prevents b4.} 7. a3 {[%emt 0:00:01]} Bf5 {[%emt 0:00:57]} 8. d3 {[%emt 0:00:04][%cal Oc1g5]} Nge7 {[%emt 0:00:07]} 9. e3 {[%emt 0:00:32]} Nxd5 {[%emt 0:00:30]} 10. cxd5 {[%emt 0:00:01]} Ne7 {[%emt 0:00:01]} 11. Ne2 {[%emt 0:01:30]} h5 {[%emt 0:00:01]} 12. h3 {[%emt 0:00:11]} Qd7 {[%emt 0:00:02]} 13. Nc3 {[%emt 0:00:13]} b5 {[%emt 0:00:27]} 14. b4 {[%emt 0:00:07]} axb4 {[%emt 0:00:05]} 15. axb4 {[%emt 0:00:01]} Bb6 {[%emt 0:00:01]} 16. Bb2 {[%emt 0:00:28]} f6 {[%emt 0:00:06]} 17. Kd2 {[%emt 0:00:59]} Kf7 {[%emt 0:00:15]} 18. Bf3 {[%emt 0:00:51]} Bg6 {[%emt 0:00:09]} 19. g4 {[%emt 0:00:13][%cal Rg4h5]} hxg4 {[%emt 0:00:56]} 20. hxg4 {[%emt 0:00:01]} Rag8 {[%emt 0:01:03]} 21. Ra1 {[%emt 0:01:21]} Ra8 {[%emt 0:00:07]} (21... Rxh1 $11 22. Qxh1 Qc8) 22. Rxa8 $1 $14 {[%emt 0:00:40]} Rxa8 {[%emt 0:00:02]} 23. Qb3 {[%emt 0:00:06]} Kg8 {[%emt 0:00:07]} 24. Ra1 {[%emt 0:01:05]} (24. Rh2 $14) 24... Rxa1 $11 {[%emt 0:00:08]} 25. Bxa1 {[%emt 0:00:01]} f5 {[%emt 0:00:04]} 26. Qd1 {[%emt 0:00:26]} f4 {[%emt 0:00:31]} 27. Bb2 {[%emt 0:00:28]} Bf7 {[%emt 0:00:09]} 28. Qh1 {[%emt 0:00:38]} fxe3+ {[%emt 0:00:40]} 29. fxe3 {[%emt 0:00:02]} Bg6 {[%emt 0:00:31]} 30. Qh4 {[%emt 0:00:15]} Qe8 {[%emt 0:00:15]} 31. Qg5 {[%emt 0:00:38]} Qf7 {[%emt 0:00:11]} 32. Be2 {[%emt 0:00:59]} (32. Ke2 $1 $11) 32... Kf8 {[%emt 0:00:29]} (32... c6 $1 $17) 33. Qh4 $2 {[%emt 0:00:14] [#]} (33. e4 $15) 33... Qf6 $2 {[%emt 0:00:50]} (33... Bxe3+ $1 $19 {[%mdl 512]} 34. Kc2 Kg8) 34. Qh8+ {[%emt 0:00:16]} Ng8 {[%emt 0:00:08][%cal Ob6e3]} 35. Qh2 {[%emt 0:00:13]} Be8 {[%emt 0:00:09]} (35... Qg5 $5 {[%cal Rg5e3]} 36. Qf2+ Nf6 $15) 36. Qg2 $2 {[%emt 0:00:07] [#]} (36. Qg3 $11 {and White has nothing to worry.}) 36... Bd7 $2 {[%emt 0:00:10]} (36... Bxe3+ $1 $19 {[%mdl 512]} 37. Kc2 Qf4) 37. Ne4 $2 {[%emt 0:00:09] [#]} (37. Qg3 $11 {and White stays safe.}) 37... Qh4 $2 {[%emt 0:00:08]} (37... Bxe3+ $1 $19 {[%mdl 512]} 38. Kc2 Qf4) 38. Qf2+ {[%emt 0:00:10]} Qxf2 {[%emt 0:00:05]} 39. Nxf2 {[%emt 0:00:02]} Nf6 {[%emt 0:00:09]} 40. Bf3 {[%emt 0:00:01]} Ke7 {[%emt 0:00:08]} 41. Ke2 {[%emt 0:00:05]} Nh7 {[%emt 0:00:07]} (41... Kf7 $15) 42. Bc3 {[%emt 0:00:03]} Ng5 {[%emt 0:00:04]} 43. Bg2 {[%emt 0:00:02]} g6 {[%emt 0:00:27]} 44. Bd2 {[%emt 0:00:02]} Be8 {[%emt 0:00:07]} 45. Ne4 {[%emt 0:00:10]} Nxe4 {[%emt 0:00:09]} 46. Bxe4 {[%emt 0:00:01][%mdl 4096] Endgame KBB-KBB} Kf6 {[%emt 0:00:13]} 47. Bf3 {[%emt 0:00:13]} Bd7 {[%emt 0:00:03]} 48. Kf2 {[%emt 0:00:05]} g5 {[%emt 0:00:28]} 49. Be2 {[%emt 0:00:05]} c6 {[%emt 0:00:09]} 50. dxc6 {[%emt 0:00:03]} Bxc6 {[%emt 0:00:01]} 51. Bf3 {[%emt 0:00:03]} d5 {[%emt 0:00:11]} 52. Bd1 {[%emt 0:00:01]} Be8 {[%emt 0:00:23]} 53. Bb3 {[%emt 0:00:02]} Ke6 {[%emt 0:00:09]} 54. Kf3 {[%emt 0:00:02]} Bg6 {[%emt 0:00:05]} ({Better is} 54... Kd6 $11) 55. e4 $14 {[%emt 0:00:05]} Kf6 {[%emt 0:00:29]} 56. Bxd5 {[%emt 0:00:02] Threatens to win with Bc6.} Be8 {[%emt 0:00:03] Against Bc6} 57. Be3 {[%emt 0:00:01]} Bd4 {[%emt 0:00:08]} 58. Bxd4 {[%emt 0:00:02]} (58. Bg8 $14) 58... exd4 {[%emt 0:00:01] KB-KB. The position is equal.} 59. Kg3 {[%emt 0:00:21]} Ke5 {[%emt 0:00:03]} 60. Bb3 {[%emt 0:00:00]} Bd7 {[%emt 0:00:05]} 61. Kf3 {[%emt 0:00:00]} Be8 {[%emt 0:00:01]} 62. Ba2 {[%emt 0:00:00]} Bd7 {[%emt 0:00:01]} 63. Bb3 {[%emt 0:00:00]} Be8 {Weighted Error Value: White=0.34/Black=0.26 (precise)} 1/2-1/2

[Event "5th Vera Menchik Memorial 2022"]
[Site "Prag"]
[Date "2022.06.05"]
[Round "7.15"]
[White "Jedlicka, Ales"]
[Black "Pecka, Jan"]
[Result "0-1"]
[ECO "E12"]
[WhiteElo "2207"]
[BlackElo "1863"]
[Annotator "TA"]
[PlyCount "62"]
[EventDate "2022.06.05"]
[EventType "tourn"]
[EventCountry "CZE"]
[SourceTitle "playchess.com"]
[Source "ChessBase"]
[SourceQuality "1"]
[TimeControl "720+3"]

{[%evp 10,62,12,12,26,34,23,14,25,14,0,8,32,0,-4,-77,-83,-79,-60,-85,-80,-150,-145,-142,-149,-151,-152,-149,-148,-168,-151,-353,-203,-1699,-1048,-1011,-1006,-1006,-997,-1001,-993,-1414,-1408,-1504,-1420,-1141,-893,-29982,-29983,-29983,-29984,-29984,-29985,-29986,-29986]} 1. d4 {[%emt 0:00:03]} Nf6 {[%emt 0:00:00]} 2. c4 {[%emt 0:00:03]} e6 {[%emt 0:00:01]} 3. Nf3 {[%emt 0:00:02]} b6 {[%emt 0:00:01]} 4. a3 {[%emt 0:00:03]} Bb7 {[%emt 0:00:08]} 5. Nc3 {[%emt 0:00:03]} d5 {[%emt 0:00:01]} 6. Bf4 {[%emt 0:00:02]} c6 {[%emt 0:00:07] E12: Queen's Indian: Unusual White 4th moves, 4 a3, 4 Nc3 Bb7 5 a3 and 4 Nc3 Bb7 .} 7. e3 {[%emt 0:00:05]} Bd6 {[%emt 0:00:04]} 8. Bg3 {[%emt 0:00:03]} O-O {[%emt 0:00:03] [#] The position is equal.} 9. Bd3 $146 {[%emt 0:00:03]} ({Predecessor:} 9. b4 Na6 10. c5 Bxg3 11. hxg3 bxc5 12. bxc5 Qa5 13. Qd2 Nc7 14. Bd3 Ba6 15. O-O Bxd3 16. Qxd3 {½-½ (81) Socko,M (2428)-Vijayalakshmi,S (2332) Chess.com INT 2020}) 9... Bxg3 {[%emt 0:00:42]} 10. hxg3 {[%emt 0:00:02]} Nbd7 {[%emt 0:00:02]} 11. g4 {[%emt 0:00:10] Hoping for g5.} dxc4 {[%emt 0:00:04]} 12. Bb1 {[%emt 0:00:25] [#]} (12. Bc2 $1 $11 {keeps the balance.} g6 13. g5) 12... g6 $1 $17 {[%emt 0:00:18]} 13. g5 {[%emt 0:00:04]} Nd5 {[%emt 0:00:01]} 14. Qd2 {[%emt 0:00:46]} c5 {[%emt 0:00:11] Threatens to win with ...Nxc3.} 15. e4 {[%emt 0:00:06] [#]} (15. Be4 $142) 15... cxd4 $1 {[%emt 0:00:37]} 16. Qxd4 {[%emt 0:01:13]} Nxc3 {[%emt 0:00:26]} 17. bxc3 {[%emt 0:00:02]} Nc5 {[%emt 0:00:07]} 18. Qe3 {[%emt 0:00:22]} f5 {[%emt 0:00:33][%cal Rb7e4] Black is more active.} 19. gxf6 {[%emt 0:00:12]} Qxf6 {[%emt 0:00:03][%cal Oc5d3] aiming for ...Nd3+!} 20. Bc2 {[%emt 0:00:39] Prevents Nd3+. White does not recover from this.} (20. Ra2 $17 {was called for.}) 20... Rad8 {[%emt 0:00:15]} (20... Nd3+ $142 21. Kf1 Qxc3) 21. Ng5 $2 {[%emt 0:00:32]} (21. O-O) 21... Nd3+ {[%emt 0:00:11]} 22. Kf1 {[%emt 0:02:26]} Qxf2+ {[%emt 0:00:56]} 23. Qxf2 {[%emt 0:00:08]} Rxf2+ {[%emt 0:00:03]} 24. Kg1 {[%emt 0:00:01]} Rxc2 {[%emt 0:00:01]} 25. Nxh7 {[%emt 0:01:13]} Nf4 {[%emt 0:01:01]} 26. Rh4 {[%emt 0:01:16]} Rxg2+ {[%emt 0:01:08]} 27. Kf1 {[%emt 0:01:25]} g5 {[%emt 0:00:02][%cal Bg6g5,Bg5f4][%mdl 32]} 28. Nf6+ {[%emt 0:00:26]} Kf7 {[%emt 0:01:11] Black mates.} 29. Rxf4 {[%emt 0:01:06]} gxf4 {[%emt 0:00:01]} 30. Kxg2 {[%emt 0:00:19]} Kxf6 {[%emt 0:00:02]} 31. Kf3 {[%emt 0:00:06]} Ke5 {[%emt 0:00:00] Weighted Error Value: White=1.02/Black=0.40} 0-1